Cogmind - Beta 16 @@@ ROGUE MODE // 2025.11.18 @ 13:42:35 Player: Demo Result: Destroyed by S-27 Virus with Autogun Performance ------------- Evolutions (4) 2000 Regions Visited (7) 1400 Robots Destroyed (57) 285 Value Destroyed (2730) 2730 Prototype IDs (12) 240 Alien Tech Used (0) 0 Bonus (2118) 2118 TOTAL SCORE: 8773 Bonus ------- High Alert Combat Kills 576 Follower Combat Kills 57 Entered Garrisons 200 Used RIF Installer 500 Registered with UFD 300 Met Optimus in HQ 500 Friendly Fire -15 Cogmind --------- Core Integrity 0/850 Matter 33/300 Energy 100/100 System Corruption 8% Temperature Hot (217) Movement Core (50) Location -6/Factory Parts ------- > --- POWER (1) -------- (None) > --- PROPULSION (6) --- (None) > --- UTILITY (6) ------ (None) > --- WEAPON (2) ------- (None) > --- INVENTORY (5) ---- Improved Weapon Cycler Relay Coupler [Proto] (9) Proton Missile Launcher Plasma Cutter CPS Tube (2) Peak State ------------ > --- POWER ------------ Light Antimatter Reactor Light Antimatter Reactor > --- PROPULSION ------- Light Treads Light Treads Improved Treads Improved Treads Biometal Leg Compact Wheel Armored Huge Wheel > --- UTILITY ---------- Advanced Heat Sink Large Storage Unit Machine Analyzer Improved Weapon Cycler Improved Weapon Cycler Tower Shield A0-MCA's Component Scanner > --- WEAPON ----------- Hypervelocity Gauss Cannon Hypervelocity Gauss Cannon Hypervelocity Gauss Cannon Makeshift Hammer > --- INVENTORY -------- Improved Weapon Cycler Relay Coupler [NC] Relay Coupler [NC] Relay Coupler [NC] Relay Coupler [NC] Drone Bay Heavy Flak Cannon Hypervelocity Gauss Cannon Hypervelocity Gauss Cannon Proton Missile Launcher Remote Datajack Plasma Cutter CPS Tube CPS Tube Multitool [Rating: 114] Favorites ----------- Power Subdweller Power Source Engine Subdweller Power Source Power Core Nuclear Core Reactor Light Antimatter Reactor Propulsion Compact Wheel Treads Improved Treads Leg Biometal Leg Wheel Compact Wheel Utility Humpback Device Improved Weapon Cycler Storage Humpback Processor Machine Analyzer Hackware Hacking Suite Protection Makeshift Light Armor Plating Weapon Heavy Battle Rifle Energy Gun Subdweller Laser Energy Cannon Subdweller Beam Cannon Ballistic Gun Heavy Battle Rifle Ballistic Cannon Hypervelocity Gauss Cannon Launcher Proton Missile Launcher Special Weapon Multitool Impact Weapon Makeshift Hammer Build | -11 -10 -10 -8 -8 -6 -6 -6 ------- Run | Yrd Mat Sub Rec Scr Fac Gar Fac Slots Evolved 8 | . . . . . 8 . . Power . | . . . . . . . . Propulsion 4 | . . . . . 4 . . Utility 4 | . . . . . 4 . . Weapon . | . . . . . . . . Parts Attached 91 | 7 2 25 2 2 9 38 6 Power 9 | 1 . 3 . 1 1 3 . Engine 5 | 1 . 3 . . . 1 . Core 2 | . . . . 1 1 . . Reactor 2 | . . . . . . 2 . Propulsion 28 | 3 . 11 2 . 4 4 4 Treads 11 | 2 . 4 . . 2 3 . Leg 1 | . . . . . . 1 . Wheel 16 | 1 . 7 2 . 2 . 4 Hover . | . . . . . . . . Flight . | . . . . . . . . Utility 28 | 1 . 3 . . 4 19 1 Device 15 | . . 1 . . 1 12 1 Storage 5 | 1 . 2 . . . 2 . Processor 4 | . . . . . . 4 . Hackware 1 | . . . . . 1 . . Protection 3 | . . . . . 2 1 . Artifact . | . . . . . . . . Weapon 26 | 2 2 8 . 1 . 12 1 Energy Gun 5 | 1 . 2 . . . 2 . Energy Cannon 2 | . . 2 . . . . . Ballistic Gun 7 | 1 2 3 . 1 . . . Ballistic Cannon 6 | . . . . . . 6 . Launcher 1 | . . . . . . 1 . Special Weapon 2 | . . . . . . 2 . Impact Weapon 3 | . . 1 . . . 1 1 Slashing Weapon . | . . . . . . . . Piercing Weapon . | . . . . . . . . Special Melee Weapon . | . . . . . . . . Unidentified Prototypes . | . . . . . . . . Parts Lost 20 | . . 4 . . 6 6 4 Power 3 | . . 2 . . 1 . . Propulsion 8 | . . 1 . . 2 2 3 Utility 6 | . . 1 . . 2 2 1 Weapon 3 | . . . . . 1 2 . Highest Loss Streak 3 | . . 1 . . 3 2 3 To Critical Strikes 1 | . . . . . . 1 . Average Backups 24 | . 7 24 27 27 28 23 12 Power 1 | . . 2 1 1 1 . . Propulsion 5 | . 4 6 7 8 4 . . Utility 7 | . . 6 9 8 8 9 5 Weapon 7 | . 2 8 9 8 8 8 4 Tool/Special . | . . . . . . . . Unused Backups 47 | . . 7 4 8 3 16 9 Power 7 | . . 4 . 1 1 1 . Propulsion 4 | . . . 2 2 . . . Utility 20 | . . 3 2 2 2 6 5 Weapon 10 | . . . . 3 . 6 1 Tool/Special 6 | . . . . . . 3 3 Average Slot Usage (%) 81 | . 85 83 84 78 81 83 67 Engine 8 | . 14 12 14 11 . . . Core 1 | . . . . 2 6 1 . Reactor 1 | . . . . . . 4 4 Treads 7 | . 14 7 . . 14 16 8 Wheel 20 | . 14 20 27 28 20 11 14 Device 5 | . . . . . . 16 26 Storage 11 | . 14 13 14 14 6 5 4 Protection 1 | . . . . . 12 3 . Energy Gun 1 | . 1 2 . . . 2 . Energy Cannon 5 | . . 10 14 5 . . . Ballistic Gun 10 | . 26 13 14 16 13 . . Ballistic Cannon 1 | . . . . . . 7 4 Peak Build Rating 114 | 6 9 22 21 23 51 114 69 Average Rating 34 | 4 8 17 20 19 44 76 51 On Entrance 23 | . 6 9 21 20 23 38 69 Avg Prop Armor Cover (%) 12 | 23 12 11 . . 7 12 14 Naked Turns 138 | . . . . . . . 138 Heaviest Build 236 | 11 14 217 217 217 234 236 61 Greatest Support 76 | 16 16 46 36 32 76 44 76 Greatest Overweight (x) 13 | 2 . 13 13 6 5 5 2 Average Overweight (x) 4 | . . 5 6 6 3 2 . Largest Inventory Capacity 35 | 8 8 35 35 35 35 35 15 Average Capacity 30 | 7 8 32 35 35 35 27 12 Most Carried 35 | 1 8 35 35 35 35 35 15 Average Carried 27 | . 7 27 34 33 33 26 12 Final Capacity 35 | 8 8 35 35 35 35 15 5 Final Carried 35 | 1 8 35 35 35 35 15 5 Class Distribution -------------------- 72% | Hauler-Mutant 14% | Mutant 6% | Bothacker-Mutant 4% | Bothacker-Gunner Dominant Class ---------------- Mutant | -10/Materials Hauler-Mutant | -10/Subcaves Hauler-Mutant | -8/Recycling Hauler-Mutant | -8/Scraptown Hauler-Mutant | -6/Factory Hauler-Mutant | -6/Garrison Bothacker-Mutant | -6/Factory Resources | -11 -10 -10 -8 -8 -6 -6 -6 ----------- Run | Yrd Mat Sub Rec Scr Fac Gar Fac Matter Collected 3057 | 189 157 665 57 20 182 1605 182 Remotely 127 | . . . . . 127 . . Salvage Created 2682 | . . 604 380 . 70 1413 215 Parts 113 | . . 33 17 . 7 48 8 Haulers Intercepted . | . . . . . . . . Recyclers Shooed 1 | . . . 1 . . . . Parts Field Recycled . | . . . . . . . . Retrieved Matter . | . . . . . . . . Parts Self-Destructed 10 | . . 10 . . . . . Prevented . | . . . . . . . . Parts Restored . | . . . . . . . . Kills | -11 -10 -10 -8 -8 -6 -6 -6 ------- Run | Yrd Mat Sub Rec Scr Fac Gar Fac Combat Hostiles Destroyed 47 | . . 14 . . 1 26 6 Melee 2 | . . . . . . 2 . Guns 9 | . . 5 . . 1 3 . Cannons 28 | . . 9 . . . 17 2 AOE 5 | . . . . . . 2 3 Classes Destroyed 15 | . . 4 1 . 2 6 2 Worker 3 | . . . . . . . 3 Recycler 4 | . . . 4 . . . . Operator 1 | . . . . . 1 . . Turret 1 | . . 1 . . . . . Watcher 1 | . . . . . . 1 . Swarmer 11 | . . 2 . . . 9 . Cutter 2 | . . . . . . 2 . Grunt 11 | . . . . . 1 7 3 Brawler 2 | . . . . . . 2 . Sentry 3 | . . . . . . 2 1 Demolisher 1 | . . . . . . 1 . Hunter 1 | . . . . . . . 1 Programmer 4 | . . . . . . 3 1 Artisan 1 | . . 1 . . . . . Subdweller 12 | . . 12 . . . . . Best Kill Streak 4 | . . 2 2 . 1 4 4 Combat Bots Only 4 | . . 2 . . 1 4 3 Max Kills in Single Turn 3 | . . 1 1 . 1 2 3 Gunslinging . | . . . . . . . . Exploded 3 | . . . . . . 1 3 Melee 1 | . . . . . . 1 . Uniques/NPCs Destroyed . | . . . . . . . . Combat | -11 -10 -10 -8 -8 -6 -6 -6 -------- Run | Yrd Mat Sub Rec Scr Fac Gar Fac Hostile Shots Fired 571 | . . 77 . . 56 186 252 Missed 184 | . . 16 . . 11 61 96 Hits 387 | . . 61 . . 45 125 156 Melee 6 | . . . . . . 6 . Projectile 381 | . . 61 . . 45 119 156 AOE 5 | . . . . . . 5 . Critical Strikes 14 | . . . . . 6 4 4 Damage Taken 6065 | . . 1269 . . 1100 2142 1554 Core 1028 | . . 163 . . 55 130 680 Absorbed by Shields 439 | . . . . . . . 439 Regen/Repaired (Parts) 85 | . . . . . . . 85 Core Remaining (%) 67 | 100 . . . 34 . . . Volleys Fired 235 | . 7 80 9 . 8 110 21 Largest 4 | . 2 2 2 . 2 4 1 Hottest 197 | . 46 140 113 . 56 197 51 Shots Fired 424 | . 14 156 18 . 16 199 21 Gun 190 | . 14 102 9 . 16 49 . Cannon 219 | . . 54 9 . . 135 21 Launcher 6 | . . . . . . 6 . Special 9 | . . . . . . 9 . Kinetic 294 | . 14 87 9 . 16 147 21 Thermal 85 | . . 69 9 . . 7 . Explosive . | . . . . . . . . Electromagnetic 43 | . . . . . . 43 . Robot Hit Streak 54 | . 5 54 4 . 11 13 5 Robot Miss Streak 10 | . 1 2 1 . 4 10 2 Penetration Max 1 | . . . . . . 1 . Secondary Targets . | . . . . . . . . Shots Hit Robots 298 | . 10 104 11 . 9 141 23 Core Hits 108 | . . 25 6 . 5 63 9 Critical Kills 13 | . . . . . . 12 1 Critical Parts Destroyed 41 | . . 1 . . . 37 3 Critical Strikes 61 | . . 2 . . . 53 6 Destroy 55 | . . 2 . . . 50 3 Blast 2 | . . . . . . . 2 Smash 4 | . . . . . . 3 1 Melee Attacks 82 | . . 7 . . . 59 16 Impact 82 | . . 7 . . . 59 16 Slashing . | . . . . . . . . Piercing . | . . . . . . . . Sneak Attacks . | . . . . . . . . Combat Hostiles . | . . . . . . . . Follow-up Attacks . | . . . . . . . . Damage Inflicted 7679 | . 164 2043 263 . 212 3413 1584 Guns 2359 | . 164 1270 148 . 177 600 . Cannons 2952 | . . 773 115 . . 1567 497 Explosions 910 | . . . . . . 363 547 Melee 1332 | . . . . . . 829 503 Ramming 75 | . . . . . 35 3 37 Kinetic 3634 | . 164 957 148 . 177 1691 497 Thermal 2019 | . . 1086 115 . . 271 547 Explosive . | . . . . . . . . Electromagnetic 619 | . . . . . . 619 . Impact 1332 | . . . . . . 829 503 Slashing . | . . . . . . . . Piercing . | . . . . . . . . Highest Corruption 8 | . . . . . 4 7 8 Average Corruption 5 | . . . . . 1 4 7 Corruption Purged 5 | . . . . . . 5 . Corruption Blocked . | . . . . . . . . Effects 58 | . . . . . . 32 26 Message Errors 15 | . . . . . . 9 6 Matter Fused 14 | . . . . . . 6 8 Heat Flow Errors 8 | . . . . . . 2 6 Energy Discharges 6 | . . . . . . 4 2 Parts Rejected 1 | . . . . . . 1 . Data Loss (minor) 2 | . . . . . . 2 . Data Loss (major) 5 | . . . . . . 3 2 Misfires 3 | . . . . . . 2 1 Alerts 1 | . . . . . . 1 . Weapon Failures 3 | . . . . . . 2 1 Overload Shots . | . . . . . . . . Overflow Damage 608 | . . . . . . 426 182 Projectiles 20 | . . . . . . . 20 Explosions 76 | . . . . . . 26 50 Melee 512 | . . . . . . 400 112 Knockbacks 27 | . . . . . 1 21 5 Impact 6 | . . . . . 1 3 2 Kinetic 20 | . . . . . . 17 3 Secondary 1 | . . . . . . 1 . Self-Inflicted Damage 298 | . . . . . 17 85 196 Shots 6 | . . . . . . 3 3 Rammed 13 | . . . . . 3 1 9 Targets Rammed 13 | . . . . . 3 1 9 Kicked . | . . . . . . . . Crushed . | . . . . . . . . Highest Temperature 338 | . . 102 108 . 69 338 254 Average Temperature 52 | . . 18 37 . 27 68 55 Received Heat Transfer 1242 | . . 309 . . 333 186 414 Siege Activations . | . . . . . . . . Martial Activations . | . . . . . . . . Shielding Activations . | . . . . . . . . Robots Disrupted . | . . . . . . . . Combat Hostiles . | . . . . . . . . Robots Corrupted 5 | . . . . . . 4 1 Combat Hostiles 4 | . . . . . . 3 1 Parts Fried 8 | . . . . . . 8 . Impact Corruptions 15 | . . . . . . 10 5 Robots Melted . | . . . . . . . . Combat Hostiles . | . . . . . . . . Parts Melted 4 | . . 4 . . . . . Heat Transferred 2185 | . . 1411 148 . . 326 300 Parts Sabotaged . | . . . . . . . . Parts Stolen . | . . . . . . . . Parts Stripped . | . . . . . . . . Power Chain Reactions 3 | . . . . . . 3 . Alert | -11 -10 -10 -8 -8 -6 -6 -6 ------- Run | Yrd Mat Sub Rec Scr Fac Gar Fac Maximum Alert Level 5 | . . . . . . 5 3 Low Security (%) 34 | 100 100 . 100 . 100 8 . Level 1 9 | . . . . . . 16 . Level 2 10 | . . . . . . 18 . Level 3 22 | . . . . . . 14 100 Level 4 18 | . . . . . . 33 . Level 5 4 | . . . . . . 8 . High Security . | . . . . . . . . Max Security . | . . . . . . . . Peak Influence 1743 | . . . 52 . 26 1743 981 Initial 914 | . . . 9 . . . 914 Average 627 | . . . 10 . 2 893 888 Influence Increases 2563 | . . 70 126 . 60 1868 439 Destroy 0b10 Robot/C 760 | . . 60 . . 20 560 120 Destroy 0b10 Robot/NC 85 | . . . 30 . 5 35 15 Destroy Leader 80 | . . 10 . . . 30 40 Allied During Kill 18 | . . . . . . 18 . Successful Hack 42 | . . . . . 35 7 . Select Force Hacks 90 | . . . 90 . . . . Disable Machine 120 | . . . . . . 45 75 Anti-Garrison Action 700 | . . . . . . 700 . Destroy Structure 173 | . . . 6 . . 113 54 Partial Spotted 30 | . . . . . . . 30 Lose Combat Pursuer 465 | . . . . . . 360 105 Influence Decreases 1590 | . . 51 125 20 60 125 1209 Entered New Map 859 | . . . 10 20 . . 829 Time Decay 536 | . . 51 115 . 60 . 310 Lost Part 100 | . . . . . . 60 40 Lost Ally 95 | . . . . . . 65 30 Squads Dispatched 9 | . . . . . 3 . 6 Investigation 3 | . . . . . . . 3 Extermination 2 | . . . . . 1 . 1 Reinforcement 1 | . . . . . 1 . . Assault 2 | . . . . . . . 2 Garrison 1 | . . . . . 1 . . Intercept . | . . . . . . . . Searches Triggered . | . . . . . . . . Construction Impeded 1 | . . . . . 1 . . Haulers Reinforced . | . . . . . . . . Active Scanning Responses . | . . . . . . . . Cargo Convoy Interrupts . | . . . . . . . . Stealth | -11 -10 -10 -8 -8 -6 -6 -6 --------- Run | Yrd Mat Sub Rec Scr Fac Gar Fac Distress Signals 7 | . . . . . . 3 4 Communications Jammed . | . . . . . . . . Distress Signals . | . . . . . . . . Times Spotted 89 | . . 16 . . 8 45 20 Peak Tracking Total 7 | . . 2 . . 6 7 5 Tactical Retreats 23 | . . 1 . . . 19 3 Traps | -11 -10 -10 -8 -8 -6 -6 -6 ------- Run | Yrd Mat Sub Rec Scr Fac Gar Fac Traps Triggered 9 | . . 2 . . 1 6 . Indirectly . | . . . . . . . . Trap Hack Attempts . | . . . . . . . . Triggered . | . . . . . . . . Disarmed . | . . . . . . . . Reprogrammed . | . . . . . . . . Reused . | . . . . . . . . Traps Extracted . | . . . . . . . . Installed 1 | . . . . . . 1 . Triggered . | . . . . . . . . Most Traps Carried 5 | . . 2 2 5 3 3 . Machines | -11 -10 -10 -8 -8 -6 -6 -6 ---------- Run | Yrd Mat Sub Rec Scr Fac Gar Fac Machines Disabled 12 | . . 1 . . . 6 5 Max in Single Turn 5 | . . 1 . . . 1 5 Garrison Relay 3 | . . . . . . 3 . Machines Repaired . | . . . . . . . . Machines Dismantled . | . . . . . . . . Machines Sabotaged . | . . . . . . . . Overloaded Fab Kills . | . . . . . . . . Hacking | -11 -10 -10 -8 -8 -6 -6 -6 --------- Run | Yrd Mat Sub Rec Scr Fac Gar Fac Machines Accessed 18 | . . 2 3 2 4 3 4 Terminals 5 | . . . . . 2 3 . Fabricators 1 | . . . . . 1 . . Repair Stations 1 | . . . . . . . 1 Recycling Units 5 | . . . 3 . . . 2 Scanalyzers 1 | . . . . . . . 1 Garrison Access 1 | . . . . . 1 . . Total Hacks 44 | . . 5 3 10 11 7 8 Successful 32 | . . 5 3 10 8 1 5 Failed 12 | . . . . . 3 6 3 Catastrophic 3 | . . . . . . 2 1 Database Lockouts . | . . . . . . . . Manual 16 | . . . 3 . 7 . 6 Terminals 16 | . . . . . 9 7 . Fabricators 1 | . . . . . 1 . . Repair Stations 3 | . . . . . . . 3 Recycling Units 6 | . . . 3 . . . 3 Scanalyzers 2 | . . . . . . . 2 Garrison Access 1 | . . . . . 1 . . Terminal Hacks 19 | . . 5 . 10 3 1 . Record 8 | . . 4 . 4 . . . Robot Analysis 6 | . . . . 6 . . . Open Door 1 | . . . . . . 1 . Branch Access Points 1 | . . . . . 1 . . Alert Level 1 | . . . . . 1 . . Zone Layout 1 | . . . . . 1 . . Proto ID Catalog 1 | . . 1 . . . . . Fabricator Hacks . | . . . . . . . . Repair Station Hacks . | . . . . . . . . Recycling Unit Hacks . | . . . . . . . . Scanalyzer 2 | . . . . . . . 2 Retrieve Study 2 | . . . . . . . 2 Garrison Access Hacks 1 | . . . . . 1 . . Unlock Access 1 | . . . . . 1 . . Unauthorized Hacks 10 | . . . 3 . 4 . 3 Terminals 3 | . . . . . 3 . . Botnet 2 | . . . . . 2 . . Operators 1 | . . . . . 1 . . Fabricators 1 | . . . . . 1 . . Fabnet 1 | . . . . . 1 . . Repair Stations 1 | . . . . . . . 1 Patch 1 | . . . . . . . 1 Recycling Units 5 | . . . 3 . . . 2 Tunnel 3 | . . . 3 . . . . Fedlink 1 | . . . . . . . 1 Scrapoids 1 | . . . . . . . 1 Scanalyzers . | . . . . . . . . Garrison Access . | . . . . . . . . Data Cores Recovered 1 | . . . . . 1 . . Used 1 | . . . . . 1 . . Hacking Detections 6 | . . . . . 2 2 2 Full Trace Events 1 | . . . . . . 1 . Feedback Events . | . . . . . . . . Feedback Blocked . | . . . . . . . . Robot Schematics Acquired . | . . . . . . . . Robots Built . | . . . . . . . . Authchips . | . . . . . . . . Time . | . . . . . . . . Total Robot Build Rating . | . . . . . . . . Part Schematics Acquired . | . . . . . . . . Parts Built . | . . . . . . . . Authchips . | . . . . . . . . Time . | . . . . . . . . Total Part Build Rating . | . . . . . . . . Part Studies Acquired 2 | . . . . . . . 2 Parts Repaired . | . . . . . . . . Time . | . . . . . . . . Parts Recycled . | . . . . . . . . Recycled Matter . | . . . . . . . . Retrieved Matter . | . . . . . . . . Retrieved Components . | . . . . . . . . Parts Scanalyzed . | . . . . . . . . Part Schematics Acquired . | . . . . . . . . Parts Damaged . | . . . . . . . . Bothacking | -11 -10 -10 -8 -8 -6 -6 -6 ------------ Run | Yrd Mat Sub Rec Scr Fac Gar Fac Used RIF Installer 1 | . . . . . . 1 . Robots Hacked . | . . . . . . . . Non-combat . | . . . . . . . . Combat . | . . . . . . . . Robot Hacks Applied . | . . . . . . . . Relay Couplers Released 12 | . . . . . . 12 . Machine Destruction 12 | . . . . . . 12 . Fabnet Peak Effective % . | . . . . . . . . Robots Rewired . | . . . . . . . . Allies Hacked . | . . . . . . . . Hacks Repelled . | . . . . . . . . Allies | -11 -10 -10 -8 -8 -6 -6 -6 -------- Run | Yrd Mat Sub Rec Scr Fac Gar Fac Total Allies 2 | . . . . . . 2 . Largest Group 2 | . . . . . . 2 . Highest-Rated Group 84 | . . . . . . 84 . Highest-Rated Ally 46 | . . . . . . 46 . Total Orders 4 | . . . . . . 2 2 EXPLORE 4 | . . . . . . 2 2 Ally Attacks 5 | . . . . . . 5 . Total Damage 132 | . . . . . . 132 . Kills 2 | . . . . . . 2 . Allies Corrupted 1 | . . . . . . . 1 Allies Melted . | . . . . . . . . Intel | -11 -10 -10 -8 -8 -6 -6 -6 ------- Run | Yrd Mat Sub Rec Scr Fac Gar Fac Active Infowar (turns) 919 | . . 193 . . . 726 . Optics 193 | . . 193 . . . . . T.N.C. 27 | . . . . . . 27 . Machine Analysis 699 | . . . . . . 699 . Robot Analysis Total 6 | . . . . 6 . . . Derelict Logs Recovered 5 | . . . . 5 . . . Drone Launches 8 | . . . . . . 4 4 Drone Recoveries . | . . . . . . . . Exploration | -11 -10 -10 -8 -8 -6 -6 -6 ------------- Run | Yrd Mat Sub Rec Scr Fac Gar Fac Turns Passed 11145 | 45 299 3727 542 2836 481 2527 688 Spaces Moved 5695 | 42 117 1615 264 1480 247 1346 584 Core 272 | 19 . . . . . . 253 Treads 248 | . . 248 . . . . . Legs . | . . . . . . . . Wheels 5175 | 23 117 1367 264 1480 247 1346 331 Hover . | . . . . . . . . Flight . | . . . . . . . . Fastest Speed 50 | 50 100 100 177 190 145 115 50 Average Speed 162 | 82 100 190 187 190 155 138 78 Slowest Speed 880 | 150 100 880 295 190 175 175 130 Overloaded Moves . | . . . . . . . . Propulsion Burnouts . | . . . . . . . . Robots Hopped . | . . . . . . . . Potential Cave-ins . | . . . . . . . . Cave-ins Triggered . | . . . . . . . . Exploration Rate (%) 41 | 4 9 83 33 79 9 89 22 Regions Visited 7 Branch Regions 3 Pre-discovered Areas 5 | . . 1 3 1 . . . Known Exits Taken 1 | . . . . . 1 . . Unknown Exits Taken 5 | 1 1 1 1 1 . . . Scrap Searched 18 | . . 12 . 6 . . . Spaces Dug 28 | . . 1 . . . 26 1 Terrain Destroyed 114 | . . 14 4 . . 34 62 Melee 26 | . . . . . . 26 . Projectile 23 | . . 14 4 . . . 5 AOE 65 | . . . . . . 8 57 Terrain Rammed . | . . . . . . . . Walls Destroyed . | . . . . . . . . Machines Disabled . | . . . . . . . . Actions | -11 -10 -10 -8 -8 -6 -6 -6 --------- Run | Yrd Mat Sub Rec Scr Fac Gar Fac Total 7159 | 49 287 2088 301 1513 327 1827 767 Wait 697 | . 153 240 2 1 30 148 123 Move 5689 | 41 116 1614 263 1479 247 1345 584 Hop . | . . . . . . . . Pick Up 161 | . 7 80 10 16 15 33 . Fast Attach 38 | 7 2 5 2 . 2 14 6 Attach 40 | . . 6 . 1 10 22 1 Detach 3 | 1 . . 1 . . 1 . Swap 61 | . . 30 1 1 5 24 . Drop 106 | . 2 26 13 15 7 37 6 Fire 235 | . 7 80 9 . 8 110 21 Melee 82 | . . 7 . . . 59 16 Ram 9 | . . . . . 3 . 6 Kick . | . . . . . . . . Crush 4 | . . . . . . 1 3 Escape Stasis 32 | . . . . . . 32 . Rewire . | . . . . . . . . Trap 1 | . . . . . . 1 . Miscellaneous 1 | . . . . . . . 1 Route ------- -11/Scrapyard -10/Materials -10/Subcaves (discovered 3 exits: [*Mat x2] / *Rec) -8/Recycling (discovered 2 exits: *Fac / *Scr) -8/Scraptown (discovered 2 exits: *Fac x2) -6/Factory (discovered 3 exits: Low x2 / Gar) -6/Garrison (discovered 3 exits: *Fac x3) -6/Factory History --------- Turn | Location | Event 7 | -11/Scrapyard | Discovered new exit (range 16) 46 | -11/Scrapyard | Entered Materials 159 | -10/Materials | Discovered new exit (range 5) 308 | -10/Materials | Build established: Mutant 345 | -10/Materials | Entered Subcaves 346 | -10/Subcaves | Approached by a straggling Scientist 676 | -10/Subcaves | Shifting Twisted Machinery released Sub. Laser 679 | -10/Subcaves | Shifting Twisted Machinery released Humpback 972 | -10/Subcaves | Build established: Hauler-Mutant 1098 | -10/Subcaves | Visited 4L-MR0's lab 1122 | -10/Subcaves | Found Tower Shield 1280 | -10/Subcaves | Core integrity fell below 50% 1575 | -10/Subcaves | Visited Clippyterm 1580 | -10/Subcaves | Learned location of Extension (-4) 1832 | -10/Subcaves | Discovered new exit (range 15) 1886 | -10/Subcaves | Disturbed a concealed Subdweller 2931 | -10/Subcaves | Ambushed by angry Subdweller bent on revenge 3145 | -10/Subcaves | Discovered new exit (range 9) 4046 | -10/Subcaves | Discovered new exit (range 11) 4072 | -10/Subcaves | Entered Recycling 4538 | -8/Recycling | Discovered new exit (range 4) 4569 | -8/Recycling | Scanned before Scraplab entrance 4595 | -8/Recycling | Entered Scraplab 4611 | -8/Recycling | Discovered new exit (range 2) 4614 | -8/Recycling | Entered Scraptown 4895 | -8/Scraptown | Visited UFD Registry 4895 | -8/Scraptown | Registered with UFD as "Micromod" 5033 | -8/Scraptown | Scanned Subdweller tech in exchange for log data 5039 | -8/Scraptown | Learned Research emergency access door positions 5043 | -8/Scraptown | Learned Factory garrison access intel 5045 | -8/Scraptown | Learned Factory terminal intel 5049 | -8/Scraptown | Learned location of Warlord (-5) 5305 | -8/Scraptown | Delivered Scrap Shield to a Scientist 5579 | -8/Scraptown | Discovered new exit (range 5) 5697 | -8/Scraptown | Guru changed UFD alias to "Protospreader" 5919 | -8/Scraptown | Visited Junk Repository 5968 | -8/Scraptown | Visited SPCMW 5993 | -8/Scraptown | Visited Spacefarers 6538 | -8/Scraptown | Visited Comm Corps 6580 | -8/Scraptown | Visited The Evicted 6667 | -8/Scraptown | Visited Science Guys 6750 | -8/Scraptown | Visited A0-MCA Data Center 6762 | -8/Scraptown | Given a C+ rating by A0-MCA 6782 | -8/Scraptown | Found A0-MCA's Component Scanner 6828 | -8/Scraptown | Visited Scrapoid Research Area 6855 | -8/Scraptown | Visited Analyses Database 6899 | -8/Scraptown | Visited Scrap Suit Storage 6935 | -8/Scraptown | Visited DA-N13 Charitable Foundation 6952 | -8/Scraptown | Found DCF Scrap (29 items) 7125 | -8/Scraptown | Visited Abandonware Association 7148 | -8/Scraptown | Learned abandonware demo "ERRANTS.EXE" 7194 | -8/Scraptown | Visited Junk Repository 7351 | -8/Scraptown | Met Optimus 7351 | -8/Scraptown | Accepted into 0bPrime 7446 | -8/Scraptown | Discovered new exit (range 3) 7450 | -8/Scraptown | Entered Factory 7450 | -6/Factory | Evolved 8 slots: Propulsion x4, Utility x4 7451 | -6/Factory | Loaded intel: 26 terminal locations 7452 | -6/Factory | Loaded intel: 4 garrison access locations 7494 | -6/Factory | Identified exit to Lower Caves 7895 | -6/Factory | Lost 3 parts (1p2n) 7912 | -6/Factory | Garrison activated, responded to threat 7931 | -6/Factory | Identified exit to Garrison 7931 | -6/Factory | Entered Garrison 7961 | -6/Garrison | Lost 3 parts (2u1w) 8469 | -6/Garrison | Triggered checkpoint 8602 | -6/Garrison | Discovered new exit (range 11) 8623 | -6/Garrison | Triggered checkpoint 8741 | -6/Garrison | Garrison Relay disabled 8869 | -6/Garrison | Triggered checkpoint 9080 | -6/Garrison | Build established: Mutant 9163 | -6/Garrison | Triggered checkpoint 9186 | -6/Garrison | Garrison Relay disabled 9201 | -6/Garrison | Installed Relay Interface Framework 9286 | -6/Garrison | Rescued a captive Derelict 9296 | -6/Garrison | Rescued a captive Derelict 9377 | -6/Garrison | Triggered checkpoint 9499 | -6/Garrison | Discovered new exit (range 5) 9559 | -6/Garrison | Garrison Relay disabled 9568 | -6/Garrison | Attached Tower Shield, gained temporary slots: Power, Propulsion x2, Utility x2, Weapon x2 9855 | -6/Garrison | Build established: Bothacker-Gunner 10223 | -6/Garrison | Discovered new exit (range 12) 10237 | -6/Garrison | Spotted B-75 Beast 10260 | -6/Garrison | Attached CPS modules to B-75 Beast. 10263 | -6/Garrison | Attached CPS modules to B-75 Beast. 10370 | -6/Garrison | Found Relay Coupler [Proto] 10373 | -6/Garrison | Found Relay Coupler [Proto] 10378 | -6/Garrison | Found Relay Coupler [Proto] 10458 | -6/Garrison | Entered Factory 10551 | -6/Factory | Build established: Bothacker-Mutant 10808 | -6/Factory | First assault squad dispatched 10888 | -6/Factory | Loaded intel: 8 recycling unit locations 10954 | -6/Factory | Spotted B-75 Beast 11008 | -6/Factory | Released all parts (10) 11028 | -6/Factory | Core integrity fell below 50% 11039 | -6/Factory | Lost 3 parts (2n1u) 11112 | -6/Factory | Core integrity fell below 20% 11146 | -6/Factory | Destroyed by S-27 Virus with Autogun Last Messages --------------- 11030_ ALERT: Cargo convoy en route, clear transfer corridor. 11046_ I 6TBBZMWDYPYVE:I2RTX 11052_ K-01 Serf cleans the Terminal. 11063_ System corrupted: Heat flow error (+107). 11063_ Slammed into W-25 Informer. 11080_ D=XLZ9BZOO 8K=JR1Z3F 11102_ System corrupted: Energy discharge (-29). 11123_ System corrupted: Matter fused (-6). 11127_ S-27 Virus destroyed. 11133_ Connecting with Recycling Unit... >>Force(Scrapoids) UFD!MEMBER UFD!ALLOCATE<34-3=31> UFD!ETA<21> UFD!SANITIZING UFD!... 11133_ ALERT: Suspicious activity at Recycling Unit F001. Dispatching Investigation squad. 11144_ System corrupted: Heat flow error (+291). Map ----- +----------------------------------------------------+ | ?????????????????????????????????????# #?????? | | ?????????????????????????????????????# #?????? | | ?????????????????????????????????????# #?????? | | ?????????????????????????????????????# ####### | | ?????????????????????????????????????# # | | ?????????????????????????????????????# # """ | | ?????????????????????????????????????# # """ | | ?????????????????????????????????????# # """ | | ?????????????????????????????????????# + | | ???????????????????????????????????### # """ | | ???????????????????????????????????+ */ ! """ | | ???????????????????????????????????# =%# """ | | ?????????????????##########+######## =# | | ???????????????? # """ | | ???????????????????? # """ | | ???????????????????? ?"" """ # """ | | ???????????????????" """ """ ##+##+##### # | | ??????????????????"" """ """ # ??# ####### | | ??????????????? #* ! !# #?????? | | ??????????????????"" """ """ # # #?????? | | ?????????????????""" """ """ # # ####### | | ??????????????# """ """ """ # """ """ # | | ??????????????# # """ """ # | | ?????????????????""" """ # """ """ # | | ??????????????#? """ """ s # # | | ??????????????+ """ """ @"""s ########### #### | | ??????????????# Y" ????? | | ??????????????# """ ####???#???????? | | ??????????????# #??????????????? | | ??????????????# #??????????????? | | ??????????????# #########+#####+#??????????????? | | ??????????????# ????????? ????????????????????? | | ??????????????+ ?????????? ????????????????????? | | ?????????????????????????"" ""???????????????????? | | ?????????????????????????"" ""???????????????????? | | ????????????????????????""" """??????????????????? | | ???????????????????????? ??????????????????? | | ????????????????????????? ???????????????????? | | ??????????????????????????###????????????????????? | | | | | | | | | | | | | | | | | | | | | | | +----------------------------------------------------+ Best States ------------- Heat Dissipation 56 Energy Generation 37 Energy Capacity 240 Matter Stores 300 Matter Capacity 300 Sight Range 21 Terrain Scan Density 10 Armor Coverage 2000 Weapon Cycling 30 Evasion (%) 50 Targeting Accuracy 8 Recoil Reduction 4 Matter Filtering 30 Offensive Hacking 10 Item Schematics ----------------- None Robot Schematics ------------------ None Fabricated ------------ Nothing Repaired ---------- Nothing Studied --------- Wheel | -6/Factory | Hacked Arm. Huge Wheel | -6/Factory | Hacked Alien Tech Used ----------------- None Achievements -------------- None Challenges ------------ None Game ------ Seed FlyingSuperdenseLog Manual? 0 Play Time 00:53:16 Cumulative 412.6 hours Start 2025.11.18 @ 12:50:55 End 2025.11.18 @ 13:42:35 Sessions 1 Manual Loads 0 Difficulty Rogue Special Mode None Game No. 381 Rogue 381 Adventurer 0 Explorer 0 Win Type - Total 3 Types 2/1/0/0/0/0/0/0/0/0 Lore% 85 Gallery% 84 Achievement% 63 Wizard Run 0 Options --------- Layout 1 ASCII 0 Keyboard 0 Movement Numpad Keybinds 0 Fullscreen 1 Font 24/Smallcaps Map View 50x35 Zoom Use 0% Tactical HUD 1 Map Filters NONE Filters NONE Steam 1 RUN: d480e9d7-8c52-4a79-a3e2-ca987a807145